Cogmind - Beta 14 @@@ ROGUE MODE // 2024.12.27 @ 21:35:08 Player: nado Result: Destroyed by XF-EVO(z) with Zionite Laser-S Performance ------------- Evolutions (4) 2000 Regions Visited (11) 2200 Robots Destroyed (111) 555 Value Destroyed (3422) 3422 Prototype IDs (7) 140 Alien Tech Used (0) 0 Bonus (619) 619 TOTAL SCORE: 8936 Bonus ------- Follower Combat Kills 35 Aligned with FarCom 300 Met Imprinter 300 Friendly Fire -16 Cogmind --------- Core Integrity 0/850 Matter 225/300 Energy 299/300 System Corruption 0% Temperature Cool (22) Movement Hovering (290) Ox4 Location -6/Deep Caves Parts ------- > --- POWER (1) -------- Angular Momentum Engine > --- PROPULSION (5) --- Improved Airjet > --- UTILITY (6) ------ Advanced Heat Sink Large Storage Unit Improved Signal Interpreter Weapon Cycler > --- WEAPON (3) ------- Magnetic Acceleration Cannon > --- INVENTORY (15) --- Improved Deuterium Engine Improved Deuterium Engine High-capacity Storage Unit Makeshift Light Armor Plating Hacking Suite Makeshift Hacking Suite Phasing AFG Makeshift Laser Mini Assault Cannon Precision Grenade Launcher Precision Grenade Launcher Katana CR-A16's Pointy Stick Peak State ------------ > --- POWER ------------ Angular Momentum Engine > --- PROPULSION ------- Carbon-fiber Leg Gravmag System Improved Airjet Improved Airjet Improved Airjet > --- UTILITY ---------- Advanced Heat Sink Large Storage Unit Improved Signal Interpreter Energy Filter Weapon Cycler High-powered Tractor Beam > --- WEAPON ----------- Heavy Laser Heavy Plasma Cannon Magnetic Acceleration Cannon > --- INVENTORY -------- Improved Deuterium Engine Improved Deuterium Engine High-capacity Storage Unit Makeshift Light Armor Plating Hacking Suite Makeshift Hacking Suite Phasing AFG Makeshift Laser Mini Assault Cannon Precision Grenade Launcher Precision Grenade Launcher Katana CR-A16's Pointy Stick [Rating: 66] Favorites ----------- Power Improved Deuterium Engine Engine Improved Deuterium Engine Power Core Light Nuclear Core Propulsion Light Armored Exoskeleton Treads Light Treads Leg Light Armored Exoskeleton Hover Unit Improved Airjet Utility ECM Suite Device ECM Suite Storage High-capacity Storage Unit Processor Improved Signal Interpreter Protection Improved Light Armor Plating Weapon Advanced Beam Rifle Energy Gun Advanced Beam Rifle Energy Cannon Ion Cannon Ballistic Gun Light Assault Rifle Ballistic Cannon Assault Cannon Launcher Precision Grenade Launcher Slashing Weapon Katana Build | -11 -10 -10 -10 -9 -8 -7 -6 -6 -6 -6 -6 ------- Run | Yrd Mat Min Exi Min Mat Fac Fac Low Low Zio Dee Slots Evolved 8 | . . . . . 4 2 2 . . . . Power . | . . . . . . . . . . . . Propulsion 3 | . . . . . 1 1 1 . . . . Utility 4 | . . . . . 3 . 1 . . . . Weapon 1 | . . . . . . 1 . . . . . Parts Attached 108 | 6 10 1 . . 18 36 11 14 6 5 1 Power 13 | 1 2 . . . 2 7 . 1 . . . Engine 10 | 1 2 . . . 2 4 . 1 . . . Core 3 | . . . . . . 3 . . . . . Reactor . | . . . . . . . . . . . . Propulsion 24 | 2 1 . . . 8 3 2 6 . 1 1 Treads 11 | 2 1 . . . 7 1 . . . . . Leg 6 | . . . . . . 2 2 1 . 1 . Wheel . | . . . . . . . . . . . . Hover 7 | . . . . . 1 . . 5 . . 1 Flight . | . . . . . . . . . . . . Utility 37 | 1 4 . . . 6 11 6 4 5 . . Device 25 | . 1 . . . 4 8 4 3 5 . . Storage 5 | 1 2 . . . 1 . . 1 . . . Processor 2 | . . . . . . 2 . . . . . Hackware . | . . . . . . . . . . . . Protection 5 | . 1 . . . 1 1 2 . . . . Artifact . | . . . . . . . . . . . . Weapon 34 | 2 3 1 . . 2 15 3 3 1 4 . Energy Gun 15 | 2 1 . . . . 6 3 1 1 1 . Energy Cannon 3 | . . 1 . . . 1 . . . 1 . Ballistic Gun 6 | . 2 . . . 1 3 . . . . . Ballistic Cannon 6 | . . . . . 1 3 . 1 . 1 . Launcher 2 | . . . . . . 1 . 1 . . . Special Weapon . | . . . . . . . . . . . . Impact Weapon . | . . . . . . . . . . . . Slashing Weapon 2 | . . . . . . 1 . . . 1 . Piercing Weapon . | . . . . . . . . . . . . Special Melee Weapon . | . . . . . . . . . . . . Unidentified Prototypes 5 | . . . . . 2 3 . . . . . Parts Lost 40 | . 6 . . . 5 7 2 6 6 . 8 Power 4 | . 2 . . . 1 . . 1 . . . Propulsion 10 | . 1 . . . 1 . . 3 1 . 4 Utility 16 | . 1 . . . 3 3 2 1 4 . 2 Weapon 10 | . 2 . . . . 4 . 1 1 . 2 Highest Loss Streak 8 | . 2 . . . 4 5 2 6 6 . 8 To Critical Strikes . | . . . . . . . . . . . . Average Slot Usage (%) 87 | . 93 88 100 100 91 83 82 86 94 78 98 Engine 8 | . 13 14 14 14 8 5 6 5 6 6 6 Treads 9 | . 24 28 28 28 25 . . . . . . Leg 7 | . . . . . . 14 18 17 . . 5 Hover 5 | . . . . . . . . 2 28 26 25 Device 20 | . 6 14 14 14 24 24 19 19 22 26 25 Storage 8 | . 14 14 14 14 9 7 6 6 6 6 6 Processor 3 | . . . . . . 3 6 6 6 6 6 Protection 2 | . 4 . . . 5 2 4 6 2 . . Energy Gun 7 | . 18 . . . . 9 20 13 13 . 5 Energy Cannon 3 | . . 3 14 14 9 2 . . . . 6 Ballistic Gun 3 | . 9 14 14 14 2 3 . . . . . Ballistic Cannon 2 | . . . . . 6 5 . . 6 . 6 Peak Build Rating 66 | 6 7 11 11 12 29 54 62 62 62 66 66 Average Rating 39 | 3 6 8 11 11 24 47 59 60 60 52 65 On Entrance 30 | . 6 6 11 11 12 26 54 60 58 60 66 Naked Turns . | . . . . . . . . . . . . Heaviest Build 76 | 10 27 32 32 32 65 76 70 72 55 61 61 Greatest Support 82 | 40 40 40 40 40 62 82 75 75 45 36 36 Greatest Overweight (x) 4 | 1 1 . . . 1 2 1 4 1 1 2 Average Overweight (x) . | . . . . . . . . . 1 1 1 Largest Inventory Capacity 20 | 8 15 15 15 15 20 20 20 20 15 15 15 Average Capacity 17 | 6 10 15 15 15 19 20 20 19 15 15 15 Most Carried 20 | 3 10 15 15 15 20 20 20 20 13 15 13 Average Carried 16 | 2 8 14 15 14 18 19 19 19 10 14 13 Final Capacity 20 | 8 15 15 15 15 20 20 20 15 15 15 15 Final Carried 20 | 3 9 15 15 15 20 20 20 14 9 13 13 Class Distribution -------------------- 42% | Mutant 33% | Skirmisher 8% | Scavenger-Gunner 7% | Scavenger-Skirmisher 3% | Gunner 3% | Tank Dominant Class ---------------- Mutant | -10/Materials Mutant | -10/Mines Mutant | -10/Exiles Mutant | -9/Mines Skirmisher | -8/Materials Skirmisher | -7/Factory Scavenger-Skirmisher | -6/Factory Scavenger-Skirmisher | -6/Lower Caves Scavenger-Gunner | -6/Lower Caves Mutant | -6/Zion Scavenger-Gunner | -6/Deep Caves Resources | -11 -10 -10 -10 -9 -8 -7 -6 -6 -6 -6 -6 ----------- Run | Yrd Mat Min Exi Min Mat Fac Fac Low Low Zio Dee Matter Collected 2272 | 182 188 8 . . 383 821 309 210 127 10 34 Remotely 92 | . . . . . . . . . 48 10 34 Salvage Created 4481 | . 603 . . . 725 1572 723 568 270 . 20 Parts 216 | . 42 . . 1 53 77 25 15 3 . . Haulers Intercepted 9 | . 1 . . . 3 4 1 . . . . Recyclers Shooed 7 | . 2 . . . 3 . 2 . . . . Parts Field Recycled . | . . . . . . . . . . . . Retrieved Matter . | . . . . . . . . . . . . Parts Self-Destructed 16 | . . . . . . . . 14 2 . . Prevented . | . . . . . . . . . . . . Kills | -11 -10 -10 -10 -9 -8 -7 -6 -6 -6 -6 -6 ------- Run | Yrd Mat Min Exi Min Mat Fac Fac Low Low Zio Dee Combat Hostiles Destroyed 85 | . 15 . . . 18 23 8 14 4 . 3 Guns 40 | . 14 . . . . 8 7 10 1 . . Cannons 39 | . . . . . 18 15 . . 3 . 3 AOE 4 | . . . . . . . . 4 . . . Classes Destroyed 15 | . 6 . . . 4 1 1 . 2 . 1 Worker 4 | . 1 . . 1 2 . . . . . . Builder 5 | . . . . . 1 2 2 . . . . Hauler 9 | . 1 . . . 3 4 1 . . . . Recycler 8 | . 2 . . . 1 4 1 . . . . Operator 1 | . . . . . . . 1 . . . . Watcher 2 | . 1 . . . . 1 . . . . . Swarmer 25 | . 9 . . . 10 . . 6 . . . Grunt 39 | . 6 . . . 3 15 6 7 2 . . Brawler 2 | . . . . . 1 1 . . . . . Duelist 2 | . . . . . 1 . 1 . . . . Sentry 6 | . . . . . 3 2 . . 1 . . Programmer 7 | . . . . . . 5 1 1 . . . Behemoth 1 | . . . . . . . . . 1 . . Samaritan 1 | . . . . . . . . . 1 . . Assembled 3 | . . . . . . . . . . . 3 Best Kill Streak 8 | . 5 . . 1 8 5 5 7 2 . 1 Combat Bots Only 7 | . 5 . . . 6 4 4 7 2 . 1 Max Kills in Single Turn 2 | . 2 . . 1 1 1 2 2 1 . 1 Gunslinging 1 | . . . . . . . 1 . . . . Exploded 2 | . . . . . . . . 2 . . . Melee . | . . . . . . . . . . . . Uniques/NPCs Destroyed . | . . . . . . . . . . . . Combat | -11 -10 -10 -10 -9 -8 -7 -6 -6 -6 -6 -6 -------- Run | Yrd Mat Min Exi Min Mat Fac Fac Low Low Zio Dee Hostile Shots Fired 631 | . 112 . . . 93 189 46 83 45 . 63 Missed 194 | . 35 . . . 26 56 12 29 15 . 21 Damage Taken 7480 | . 866 18 . . 921 1800 1175 958 613 . 1129 Core 1332 | . 157 . . . 88 209 496 112 116 . 154 Absorbed by Shields 32 | . . . . . 32 . . . . . . Redirected to Shielding 50 | . 50 . . . . . . . . . . Regen/Repaired (Parts) 374 | . . . . . . 128 . . . 246 . Core Remaining (%) 72 | 100 . . . 37 84 70 . . . . . Volleys Fired 289 | . 66 . . . 56 69 33 33 15 . 17 Largest 3 | . 2 . . . 2 3 3 3 3 . 3 Hottest 212 | . 80 . . . 104 183 191 191 175 . 212 Shots Fired 650 | . 132 . . . 114 176 86 79 35 . 28 Gun 437 | . 132 . . . 19 95 86 69 23 . 13 Cannon 208 | . . . . . 95 81 . 5 12 . 15 Launcher 5 | . . . . . . . . 5 . . . Special . | . . . . . . . . . . . . Kinetic 205 | . 20 . . . 56 103 . 5 12 . 9 Thermal 431 | . 103 . . . 58 73 86 69 23 . 19 Explosive 5 | . . . . . . . . 5 . . . Electromagnetic 9 | . 9 . . . . . . . . . . Robot Hit Streak 16 | . 12 . . . 12 16 9 7 11 . 4 Robot Miss Streak 6 | . 3 . . . 6 4 2 3 1 . 3 Penetration Max . | . . . . . . . . . . . . Secondary Targets 7 | . 3 . . . . . 2 2 . . . Max Gunslinging Chain 1 | . 1 . . . . . 1 1 . . . Shots Hit Robots 419 | . 83 . . . 63 123 63 47 28 . 12 Core Hits 201 | . 29 . . . 34 64 34 23 13 . 4 Critical Kills . | . . . . . . . . . . . . Critical Parts Destroyed . | . . . . . . . . . . . . Critical Strikes 21 | . . . . . 1 5 7 4 3 . 1 Burn 16 | . . . . . . 1 7 4 3 . 1 Blast 4 | . . . . . 1 3 . . . . . Sever 1 | . . . . . . 1 . . . . . Melee Attacks 11 | . . . . . . 10 . . . 1 . Impact . | . . . . . . . . . . . . Slashing 11 | . . . . . . 10 . . . 1 . Piercing . | . . . . . . . . . . . . Sneak Attacks 4 | . . . . . . 4 . . . . . Combat Hostiles . | . . . . . . . . . . . . Follow-up Attacks . | . . . . . . . . . . . . Damage Inflicted 9316 | . 935 55 . 20 1524 2879 1663 1192 731 . 317 Guns 4903 | . 919 . . . 137 1114 1440 823 396 . 74 Cannons 3418 | . . . . . 1346 1398 . 96 335 . 243 Explosions 446 | . . . . . . . 173 273 . . . Melee 361 | . . . . . . 361 . . . . . Ramming 188 | . 16 55 . 20 41 6 50 . . . . Kinetic 2637 | . 120 . . . 587 1352 . 96 335 . 147 Thermal 5790 | . 732 . . . 896 1160 1613 823 396 . 170 Explosive 273 | . . . . . . . . 273 . . . Electromagnetic 67 | . 67 . . . . . . . . . . Impact . | . . . . . . . . . . . . Slashing 361 | . . . . . . 361 . . . . . Piercing . | . . . . . . . . . . . . Highest Corruption 7 | . . . . . 1 7 1 1 1 1 . Average Corruption 3 | . . . . . 1 6 1 1 1 1 . Corruption Purged . | . . . . . . . . . . . . Corruption Blocked . | . . . . . . . . . . . . Effects 118 | . . . . . 16 80 . 16 6 . . Message Errors 36 | . . . . . 5 23 . 5 3 . . Matter Fused 25 | . . . . . . 21 . 2 2 . . Heat Flow Errors 10 | . . . . . 2 7 . 1 . . . Energy Discharges 17 | . . . . . 2 12 . 3 . . . Parts Rejected 1 | . . . . . 1 . . . . . . Parts Fused 2 | . . . . . 1 1 . . . . . Data Loss (minor) 16 | . . . . . 3 10 . 3 . . . Data Loss (major) 5 | . . . . . . 4 . . 1 . . Misfires 2 | . . . . . 2 . . . . . . Alerts 2 | . . . . . . 1 . 1 . . . Weapon Failures 2 | . . . . . . 1 . 1 . . . Overload Shots . | . . . . . . . . . . . . Overflow Damage 138 | . . . . . 3 57 61 . . . 17 Projectiles 33 | . . . . . 3 13 . . . . 17 Explosions 61 | . . . . . . . 61 . . . . Melee 44 | . . . . . . 44 . . . . . Knockbacks 15 | . . . . . 5 7 1 1 . . 1 Impact 1 | . . . . . . . 1 . . . . Kinetic 14 | . . . . . 5 7 . 1 . . 1 Secondary . | . . . . . . . . . . . . Self-Inflicted Damage 119 | . . . . . . . 100 19 . . . Shots 2 | . . . . . . . 1 1 . . . Rammed 21 | . 4 9 . 1 7 . . . . . . Targets Rammed 33 | . 6 9 . 2 8 2 6 . . . . Kicked 8 | . . . . . . 2 6 . . . . Crushed 4 | . 2 . . 1 1 . . . . . . Highest Temperature 871 | . 238 . . . 151 301 871 249 106 . 397 Average Temperature 102 | . 60 . . . 11 71 287 58 33 . 224 Received Heat Transfer 2064 | . 243 . . . 132 744 234 351 72 . 288 Effects 31 | . . . . . . 2 27 . . . 2 Shutdowns 4 | . . . . . . . 4 . . . . Energy Bleed 4 | . . . . . . . 3 . . . 1 Interference 2 | . . . . . . 2 . . . . . Matter Decay 4 | . . . . . . . 3 . . . 1 Short Circuit 2 | . . . . . . . 2 . . . . Damage (minor) 1 | . . . . . . . 1 . . . . Damage (major) 11 | . . . . . . . 11 . . . . Damage (core) 3 | . . . . . . . 3 . . . . Siege Activations . | . . . . . . . . . . . . Robots Corrupted . | . . . . . . . . . . . . Combat Hostiles . | . . . . . . . . . . . . Parts Fried . | . . . . . . . . . . . . Impact Corruptions . | . . . . . . . . . . . . Robots Melted 2 | . 1 . . . . . 1 . . . . Combat Hostiles 2 | . 1 . . . . . 1 . . . . Parts Melted 17 | . 2 . . . 1 2 9 1 2 . . Heat Transferred 11334 | . 1650 . . . 1443 1998 3171 1813 925 . 334 Parts Sabotaged . | . . . . . . . . . . . . Parts Stolen . | . . . . . . . . . . . . Parts Stripped . | . . . . . . . . . . . . Power Chain Reactions . | . . . . . . . . . . . . Alert | -11 -10 -10 -10 -9 -8 -7 -6 -6 -6 -6 -6 ------- Run | Yrd Mat Min Exi Min Mat Fac Fac Low Low Zio Dee Peak Influence 385 | . 268 . . 5 198 385 272 . . . . Initial 182 | . . . . . . . 182 . . . . Average 146 | . 110 . . 2 71 250 144 . . . . Maximum Alert Level 1 | . 1 . . . . 1 1 . . . . Low Security (%) 65 | 100 74 100 . 100 100 30 74 . . . . Level 1 34 | . 25 . . . . 69 25 . . . . Level 2 . | . . . . . . . . . . . . Level 3 . | . . . . . . . . . . . . Level 4 . | . . . . . . . . . . . . Level 5 . | . . . . . . . . . . . . High Security . | . . . . . . . . . . . . Max Security . | . . . . . . . . . . . . Squads Dispatched 22 | . 2 . . . 4 13 3 . . . . Investigation 6 | . 2 . . . 2 2 . . . . . Extermination 6 | . . . . . . 5 1 . . . . Reinforcement 4 | . . . . . . 2 2 . . . . Assault . | . . . . . . . . . . . . Garrison 6 | . . . . . 2 4 . . . . . Intercept . | . . . . . . . . . . . . Searches Triggered . | . . . . . . . . . . . . Construction Impeded 1 | . . . . . . . 1 . . . . Haulers Reinforced . | . . . . . . . . . . . . Active Scanning Responses . | . . . . . . . . . . . . Cargo Convoy Interrupts . | . . . . . . . . . . . . Stealth | -11 -10 -10 -10 -9 -8 -7 -6 -6 -6 -6 -6 --------- Run | Yrd Mat Min Exi Min Mat Fac Fac Low Low Zio Dee Distress Signals 5 | . 3 . . . 2 . . . . . . Communications Jammed . | . . . . . . . . . . . . Distress Signals . | . . . . . . . . . . . . Times Spotted 153 | . 30 . . . 39 29 13 28 6 . 8 Peak Tracking Total 7 | . 6 . . . 6 5 4 6 3 . 7 Tactical Retreats 18 | . 5 . . . 6 1 . 4 2 . . Traps | -11 -10 -10 -10 -9 -8 -7 -6 -6 -6 -6 -6 ------- Run | Yrd Mat Min Exi Min Mat Fac Fac Low Low Zio Dee Traps Triggered 2 | . 1 . . . . 1 . . . . . Indirectly . | . . . . . . . . . . . . Trap Hack Attempts . | . . . . . . . . . . . . Triggered . | . . . . . . . . . . . . Disarmed . | . . . . . . . . . . . . Reprogrammed . | . . . . . . . . . . . . Reused . | . . . . . . . . . . . . Traps Extracted . | . . . . . . . . . . . . Installed . | . . . . . . . . . . . . Triggered 2 | . . . . . . . . 2 . . . Most Traps Carried 1 | . . 1 1 1 1 1 . . . . . Machines | -11 -10 -10 -10 -9 -8 -7 -6 -6 -6 -6 -6 ---------- Run | Yrd Mat Min Exi Min Mat Fac Fac Low Low Zio Dee Machines Disabled 3 | . . . . . 1 . 2 . . . . Max in Single Turn 2 | . . . . . 1 . 2 . . . . Garrison Access 2 | . . . . . 1 1 . . . . . Machines Repaired . | . . . . . . . . . . . . Machines Dismantled . | . . . . . . . . . . . . Machines Sabotaged 1 | . 1 . . . . . . . . . . Overloaded Fab Kills . | . . . . . . . . . . . . Hacking | -11 -10 -10 -10 -9 -8 -7 -6 -6 -6 -6 -6 --------- Run | Yrd Mat Min Exi Min Mat Fac Fac Low Low Zio Dee Machines Accessed 18 | . 5 1 . . 7 3 1 1 . . . Terminals 12 | . 5 . . . 5 1 . 1 . . . Fabricators 1 | . . . . . . . 1 . . . . Repair Stations 1 | . . . . . . 1 . . . . . Recycling Units . | . . . . . . . . . . . . Scanalyzers 1 | . . . . . 1 . . . . . . Garrison Access 2 | . . . . . 1 1 . . . . . Total Hacks 54 | . 17 1 . . 23 9 1 3 . . . Successful 32 | . 7 1 . . 15 5 1 3 . . . Failed 21 | . 10 . . . 7 4 . . . . . Catastrophic 5 | . 3 . . . 1 1 . . . . . Database Lockouts 1 | . . . . . 1 . . . . . . Manual 42 | . 11 . 1 . 20 3 . . . 7 . Terminals 40 | . 17 . . . 18 2 . 3 . . . Fabricators 1 | . . . . . . . 1 . . . . Repair Stations 4 | . . . . . . 4 . . . . . Recycling Units . | . . . . . . . . . . . . Scanalyzers 3 | . . . . . 3 . . . . . . Garrison Access 5 | . . . . . 2 3 . . . . . Terminal Hacks 14 | . 4 1 . . 6 . . 3 . . . Record 3 | . . . . . . . . 3 . . . Robot Analysis 1 | . . . . . 1 . . . . . . Prototype ID Bank 1 | . 1 . . . . . . . . . . Open Door 1 | . . 1 . . . . . . . . . Branch Access Points 2 | . 1 . . . 1 . . . . . . Terminal Index 3 | . 1 . . . 2 . . . . . . Unreport Threat 3 | . 1 . . . 2 . . . . . . Fabricator Hacks 1 | . . . . . . . 1 . . . . Network Status 1 | . . . . . . . 1 . . . . Repair Station Hacks 4 | . . . . . . 4 . . . . . Scan Component 2 | . . . . . . 2 . . . . . Repair 2 | . . . . . . 2 . . . . . Recycling Unit Hacks . | . . . . . . . . . . . . Scanalyzer 3 | . . . . . 3 . . . . . . Insert Component 1 | . . . . . 1 . . . . . . Analyze 2 | . . . . . 2 . . . . . . Garrison Access Hacks 1 | . . . . . 1 . . . . . . Seal Access 1 | . . . . . 1 . . . . . . Unauthorized Hacks 9 | . 3 . . . 5 1 . . . . . Terminals 7 | . 3 . . . 4 . . . . . . Botnet 6 | . 2 . . . 4 . . . . . . Sabotage 1 | . 1 . . . . . . . . . . Fabricators . | . . . . . . . . . . . . Repair Stations . | . . . . . . . . . . . . Recycling Units . | . . . . . . . . . . . . Scanalyzers . | . . . . . . . . . . . . Garrison Access 2 | . . . . . 1 1 . . . . . Broadcast 1 | . . . . . 1 . . . . . . Jam 1 | . . . . . . 1 . . . . . Data Cores Recovered . | . . . . . . . . . . . . Used . | . . . . . . . . . . . . Hacking Detections 13 | . 4 . . . 5 3 . 1 . . . Full Trace Events 9 | . 2 . . . 5 1 . 1 . . . Feedback Events . | . . . . . . . . . . . . Feedback Blocked . | . . . . . . . . . . . . Robot Schematics Acquired 4 | . . . . . . . . . . 4 . Robots Built . | . . . . . . . . . . . . Authchips . | . . . . . . . . . . . . Time . | . . . . . . . . . . . . Total Robot Build Rating . | . . . . . . . . . . . . Part Schematics Acquired 15 | . . . . . . . . . . 15 . Parts Built . | . . . . . . . . . . . . Authchips . | . . . . . . . . . . . . Time . | . . . . . . . . . . . . Total Part Build Rating . | . . . . . . . . . . . . Parts Repaired 2 | . . . . . . 2 . . . . . Time 70 | . . . . . . 70 . . . . . Parts Recycled . | . . . . . . . . . . . . Recycled Matter . | . . . . . . . . . . . . Retrieved Matter . | . . . . . . . . . . . . Retrieved Components . | . . . . . . . . . . . . Parts Scanalyzed 1 | . . . . . 1 . . . . . . Part Schematics Acquired . | . . . . . . . . . . . . Parts Damaged . | . . . . . . . . . . . . Bothacking | -11 -10 -10 -10 -9 -8 -7 -6 -6 -6 -6 -6 ------------ Run | Yrd Mat Min Exi Min Mat Fac Fac Low Low Zio Dee Used RIF Installer . | . . . . . . . . . . . . Robots Hacked . | . . . . . . . . . . . . Non-combat . | . . . . . . . . . . . . Combat . | . . . . . . . . . . . . Robot Hacks Applied . | . . . . . . . . . . . . Relay Couplers Released . | . . . . . . . . . . . . Fabnet Peak Effective % . | . . . . . . . . . . . . Robots Rewired . | . . . . . . . . . . . . Allies Hacked . | . . . . . . . . . . . . Hacks Repelled . | . . . . . . . . . . . . Allies | -11 -10 -10 -10 -9 -8 -7 -6 -6 -6 -6 -6 -------- Run | Yrd Mat Min Exi Min Mat Fac Fac Low Low Zio Dee Total Allies 3 | . . . . 2 . . . . 1 . . Largest Group 2 | . . . . 2 2 . . . 1 . . Highest-Rated Group 138 | . . . . 43 43 . . . 138 . . Highest-Rated Ally 138 | . . . . 31 31 . . . 138 . . Total Orders . | . . . . . . . . . . . . Ally Attacks 14 | . . . . . 14 . . . . . . Total Damage 213 | . . . . . 213 . . . . . . Kills 3 | . . . . . 3 . . . . . . Allies Corrupted . | . . . . . . . . . . . . Allies Melted . | . . . . . . . . . . . . Intel | -11 -10 -10 -10 -9 -8 -7 -6 -6 -6 -6 -6 ------- Run | Yrd Mat Min Exi Min Mat Fac Fac Low Low Zio Dee Robot Analysis Total 1 | . . . . . 1 . . . . . . Derelict Logs Recovered 4 | . . 1 . 2 . . . 1 . . . Drone Launches . | . . . . . . . . . . . . Drone Recoveries . | . . . . . . . . . . . . Exploration | -11 -10 -10 -10 -9 -8 -7 -6 -6 -6 -6 -6 ------------- Run | Yrd Mat Min Exi Min Mat Fac Fac Low Low Zio Dee Turns Passed 15315 | 56 1287 728 482 906 2083 4325 948 1710 763 1758 269 Spaces Moved 8306 | 36 554 441 302 564 681 1475 469 1132 713 1733 206 Core 14 | 14 . . . . . . . . . . . Treads 2615 | 22 554 441 302 564 681 51 . . . . . Legs 2879 | . . . . . . 1424 469 986 . . . Wheels . | . . . . . . . . . . . . Hover 2798 | . . . . . . . . 146 713 1733 206 Flight . | . . . . . . . . . . . . Fastest Speed 50 | 50 160 160 160 160 160 140 133 98 98 100 110 Average Speed 155 | 122 162 160 160 160 208 246 138 129 99 100 112 Slowest Speed 400 | 160 240 160 160 160 243 360 250 400 100 110 172 Overloaded Moves . | . . . . . . . . . . . . Propulsion Burnouts . | . . . . . . . . . . . . Robots Hopped 2 | . . . . . . . . . . 2 . Cave-ins Triggered . | . . . . . . . . . . . . Exploration Rate (%) 57 | 3 79 58 69 90 45 38 11 94 80 87 32 Regions Visited 11 Branch Regions 7 Pre-discovered Areas 1 | . . 1 . . . . . . . . . Known Exits Taken 7 | . 1 . . 1 . 1 1 1 1 1 . Unknown Exits Taken 4 | 1 . 1 1 . 1 . . . . . . Scrap Searched 10 | . . 1 . 1 . . . 3 1 4 . Spaces Dug . | . . . . . . . . . . . . Terrain Destroyed 89 | . . . . . 18 4 26 35 . . 6 Melee . | . . . . . . . . . . . . Projectile 30 | . . . . . 18 4 . 2 . . 6 AOE 59 | . . . . . . . 26 33 . . . Terrain Rammed . | . . . . . . . . . . . . Walls Destroyed . | . . . . . . . . . . . . Machines Disabled . | . . . . . . . . . . . . Actions | -11 -10 -10 -10 -9 -8 -7 -6 -6 -6 -6 -6 --------- Run | Yrd Mat Min Exi Min Mat Fac Fac Low Low Zio Dee Total 10165 | 45 809 459 301 567 1220 2029 717 1308 736 1749 225 Wait 1282 | . 158 . . . 434 376 186 125 3 . . Move 8291 | 35 553 440 301 563 680 1474 468 1131 712 1728 206 Hop 2 | . . . . . . . . . . 2 . Pick Up 71 | 4 11 8 . 1 13 21 6 . . 7 . Fast Attach 43 | 5 2 . . . 9 20 2 2 1 1 1 Attach 44 | 1 7 1 . . 6 8 6 7 5 3 . Detach 21 | . 3 . . . 4 8 1 2 . 3 . Swap 21 | . 1 . . . 3 8 3 5 . 1 . Drop 54 | . 2 1 . 1 7 33 6 1 . 3 . Fire 289 | . 66 . . . 56 69 33 33 15 . 17 Melee 11 | . . . . . . 10 . . . 1 . Ram . | . . . . . . . . . . . . Kick 8 | . . . . . . 2 6 . . . . Crush 25 | . 6 9 . 2 8 . . . . . . Escape Stasis . | . . . . . . . . . . . . Rewire 3 | . . . . . . . . 2 . . 1 Trap . | . . . . . . . . . . . . Miscellaneous . | . . . . . . . . . . . . Route ------- -11/Scrapyard -10/Materials (discovered 3 exits: [*Mat x2] / *Min) -10/Mines (discovered 3 exits: [*Mat] / *Exi / [*Sub]) -10/Exiles (discovered 2 exits: [*Min x2]) -9/Mines (discovered 2 exits: *Mat x2) -8/Materials -7/Factory -6/Factory -6/Lower Caves -6/Lower Caves (discovered 2 exits: *Zio / *Fac) -6/Zion (discovered 2 exits: *Dee / *Pro) -6/Deep Caves History --------- Turn | Location | Event 13 | -11/Scrapyard | Discovered new exit (range 16) 57 | -11/Scrapyard | Entered Materials 302 | -10/Materials | Build established: Mutant 409 | -10/Materials | Discovered new exit (range 16) 924 | -10/Materials | Identified exit to Mines 964 | -10/Materials | Discovered new exit (range 6) 1157 | -10/Materials | Derelicts attacked the area 1321 | -10/Materials | Core integrity fell below 50% 1344 | -10/Materials | Entered Mines 1351 | -10/Mines | Met a Derelict bent on vengeance 1365 | -10/Mines | Met a Derelict who couldn't figure out how to use a Trap Extractor 1525 | -10/Mines | Learned location of Mines (-9) 1556 | -10/Mines | Deemed a non-threat by the Exiles lab entrance 1557 | -10/Mines | Discovered new exit (range 5) 1620 | -10/Mines | Discovered new exit (range 6) 1692 | -10/Mines | Found a hidden stash of uninstalled traps 1876 | -10/Mines | Received a Rocket Launcher from a helpful Derelict 1973 | -10/Mines | Assembled infested the area 2053 | -10/Mines | Discovered new exit (range 10) 2072 | -10/Mines | Entered Exiles 2096 | -10/Exiles | Discovered new exit (range 15) 2114 | -10/Exiles | Met 8R-AWN 2140 | -10/Exiles | Met EX-HEX 2192 | -10/Exiles | Met EX-BIN 2221 | -10/Exiles | Aligned with FarCom system 2223 | -10/Exiles | Given EX-Vault access code 2268 | -10/Exiles | Opened EX-Vault 2304 | -10/Exiles | Warned to stay clear of 0b10 Research branches 2352 | -10/Exiles | Met EX-DEC 2524 | -10/Exiles | Discovered new exit (range 14) 2554 | -10/Exiles | Entered Mines 2655 | -9/Mines | Discovered new exit (range 15) 2812 | -9/Mines | Identified exit to Materials 3274 | -9/Mines | Learned location of 1 exit from Proximity Caves 3292 | -9/Mines | Found a damaged Exp. Sensor Array with a note attached 3296 | -9/Mines | Found Prototype Device 3460 | -9/Mines | Entered Materials 3460 | -8/Materials | Accompanied by 2 allies 3460 | -8/Materials | Evolved 4 slots: Propulsion x1, Utility x3 3465 | -8/Materials | Led the pair of lost Derelicts to an unsafe place 3767 | -8/Materials | Identified Exp. Sensor Array 3852 | -8/Materials | Lost 4 parts (1p1n2u) 4191 | -8/Materials | Build established: Skirmisher 4615 | -8/Materials | Garrison activated, responded to threat 5471 | -8/Materials | Discovered new exit (range 15) 5516 | -8/Materials | Central database locked down 5543 | -8/Materials | Entered Factory 5543 | -7/Factory | Evolved 2 slots: Propulsion x1, Weapon x1 6379 | -7/Factory | Garrison activated, responded to threat 6822 | -7/Factory | Garrison activated, responded to threat 6971 | -7/Factory | Lost 5 parts (2u3w) 7168 | -7/Factory | Build established: Mutant 8213 | -7/Factory | Build established: Gunner 8353 | -7/Factory | Repaired Adv. Assault Cannon 8380 | -7/Factory | Repaired ECM Suite 8846 | -7/Factory | Build established: Skirmisher 9382 | -7/Factory | Discovered new exit (range 16) 9446 | -7/Factory | Identified exit to Factory 9868 | -7/Factory | Entered another Factory area 9868 | -6/Factory | Evolved 2 slots: Propulsion x1, Utility x1 10613 | -6/Factory | Build established: Scavenger-Gunner 10640 | -6/Factory | Core integrity fell below 50% 10808 | -6/Factory | Discovered new exit (range 6) 10815 | -6/Factory | Identified exit to Lower Caves 10816 | -6/Factory | Entered Lower Caves 11154 | -6/Lower Caves | Build established: Scavenger-Skirmisher 11307 | -6/Lower Caves | Identified exit to Lower Caves 11920 | -6/Lower Caves | Build established: Skirmisher 12180 | -6/Lower Caves | Attracted the attention of an 0b10 base 12375 | -6/Lower Caves | Destroyed 7 combat bots 12375 | -6/Lower Caves | Lost 6 parts (1p3n1u1w) 12377 | -6/Lower Caves | Learned 6 Proximity Caves zone layouts 12526 | -6/Lower Caves | Entered another Lower Caves area 12623 | -6/Lower Caves | Build established: Tank 12689 | -6/Lower Caves | Attracted the attention of an 0b10 checkpoint 12812 | -6/Lower Caves | Spotted B-75 Beast 12836 | -6/Lower Caves | Core integrity fell below 20% 12836 | -6/Lower Caves | Destroyed B-75 Beast 12856 | -6/Lower Caves | Lost 6 parts (1n4u1w) 12939 | -6/Lower Caves | 99-TNT showed up to help 12941 | -6/Lower Caves | 99-TNT revealed a hidden path 12952 | -6/Lower Caves | Identified exit to Factory 13014 | -6/Lower Caves | Discovered new exit (range 8) 13021 | -6/Lower Caves | Identified exit to Zion 13127 | -6/Lower Caves | Build established: Scavenger-Gunner 13289 | -6/Lower Caves | Entered Zion 13311 | -6/Zion | Found CR-A16's Pointy Stick 13412 | -6/Zion | Discovered new exit (range 14) 13425 | -6/Zion | Identified exit to Proximity Caves 13499 | -6/Zion | System corruption cleaned by Quarantine Array 13596 | -6/Zion | Build established: Mutant 13714 | -6/Zion | Given the Hacking Drone Bay 13735 | -6/Zion | Found Prototype Device 13820 | -6/Zion | Acquired unknown access codes intercepted by a Zionite 14046 | -6/Zion | Rebuked by Imprinter 14370 | -6/Zion | Visited the Megawrench Repair Shop 14370 | -6/Zion | Megawrench repaired 8 parts 14776 | -6/Zion | Opened final containment barrier to the Deep Caves 14792 | -6/Zion | Discovered new exit (range 5) 14795 | -6/Zion | Saw the warning signs outside the Deep Caves entrance 14797 | -6/Zion | Identified exit to Deep Caves 15047 | -6/Zion | Entered Deep Caves 15163 | -6/Deep Caves | Build established: Scavenger-Gunner 15288 | -6/Deep Caves | Attacked by Z-Imprinter 15292 | -6/Deep Caves | Z-Facility disabled 15316 | -6/Deep Caves | Destroyed by XF-EVO(z) with Zionite Laser-S Last Messages --------------- 15230_ Gravmag System severed. 15231_ Acquired 2 matter. 15232_ Destroyed Asb. Hover Unit. 15232_ as-04704 destroyed. 15233_ Acquired 2 matter. 15233_ Acquired 6 matter. 15235_ Overheating: Energy bleed (-63). 15238_ Acquired Gravmag System. 15277_ NEW_ZION: Z-Facility proximity alert. Z-Imprinter: GET AWAY FROM HERE! I've worked too hard for our future just to have you ruin everything! 15292_ Z-Facility disabled. 15301_ Gravmag System destroyed. 15302_ Carbon-fiber Leg destroyed. 15306_ Hvy. Laser destroyed. 15308_ Imp. Airjet destroyed. 15309_ Hpw. Tractor Beam destroyed. 15312_ Hvy. Plasma Cannon destroyed. 15315_ Energy Filter destroyed. 15316_ Imp. Airjet destroyed. Map ----- +----------------------------------------------------+ | | | | | | | | | | | | | | | | | ?????????????????????????????????????????????????? | | ????????????????????????# ??????###############??? | | ????????????????????????# ???#### ##?? | | ????????????????????????# ??## #?? | | ????????????????######??# ?## ### | | ???????????????## # #?# ## # | | ??????????????# z ## | | ??????????????z z z | | ????????????? | | ????????????? | | ???????????? % | | ???????????? """" """"" | | ???????????? I"""""""""""""" | | ??????????? """"""""""""" | | ??????????? """"""""""""" | | ?????????? """""""""" | | ?????????? """"""""""""" | | ?????????? @ " """""""??""" | | ?????????? """"????????" | | ?????????? """"""???????" | | ??????????? """"""??????? | | ??????????? """"????????? | | ???????????? """"?????????? | | ???????????? """??????????? | | ???????????? """???????????? | | ????????????? """???????????? | | ????????????? """?????????????? | | ?????????????? "?????????????????? | | ?????????????? "??????????????????? | | ???????????????? "??????????????????? | | ?????????????????? "??????????????????? | | ????????????????????? ???????????????????? | | ??????????????????????? ?????????????????????? | | ?????????????????????????????????????????????????? | | ?????????????????????????????????????????????????? | | ?????????????????????????????????????????????????? | | ?????????????????????????????????????????????????? | | ?????????????????????????????????????????????????? | | ?????????????????????????????????????????????????? | | ?????????????????????????????????????????????????? | | ?????????????????????????????????????????????????? | | ?????????????????????????????????????????????????? | +----------------------------------------------------+ Best States ------------- Heat Dissipation 70 Energy Generation 18 Energy Capacity 300 Matter Stores 300 Matter Capacity 300 Sight Range 16 Robot Scan Range 20 Terrain Scan Density 10 ECM Strength 1 Armor Coverage 225 Propulsion Shielding 33 Weapon Cycling 15 Evasion (%) 55 Core Analysis 6 Recoil Reduction 4 Energy Filtering 30 Particle Charging 15 Kinecelleration 30 Item Schematics ----------------- Cloaking Device | -6/Zion | Archive Imp. Focal Shield | -6/Zion | Archive Thermic Laser | -6/Zion | Archive Imp. Plasma Cutter | -6/Zion | Archive Hvy. Pick | -6/Zion | Archive Phase Gun | -6/Zion | Archive Imp. Antigrav System | -6/Zion | Archive Adv. Field Recycling Unit | -6/Zion | Archive Imp. Cryofiber Web | -6/Zion | Archive Antigrav System | -6/Zion | Archive Adv. Heat Sink | -6/Zion | Archive Imp. Reaction Control System | -6/Zion | Archive Imp. Recalibrator | -6/Zion | Archive Hvy. Shock Bomb Launcher | -6/Zion | Archive Imp. Medium Treads | -6/Zion | Archive Robot Schematics ------------------ K-01 Serf | -6/Zion | Archive S-27 Virus | -6/Zion | Archive T-07 Excavator | -6/Zion | Archive X-77 Beamer | -6/Zion | Archive Fabricated ------------ Nothing Alien Tech Used ----------------- None Achievements -------------- Brute Force Signs Are For Wimps Challenges ------------ None Game ------ Seed RelayOvertunedAccelerator Manual? 0 Play Time 02:14:42 Cumulative 53.5 hours Start 2024.12.26 @ 21:47:25 End 2024.12.27 @ 21:35:08 Sessions 3 Manual Loads 0 Difficulty Rogue Special Mode None Game No. 36 Rogue 36 Adventurer 0 Explorer 0 Win Type - Total 0 Types 0/0/0/0/0/0/0/0/0 Lore% 20 Gallery% 29 Achievement% 28 Wizard Run 0 Options --------- Layout 0 ASCII 0 Keyboard 1 Movement Arrows Keybinds 0 Fullscreen 2 Font 18/Terminus Map View 76x50 Zoom Use 0% Tactical HUD 1 Map Filters NONE Filters NONE Steam 1 RUN: a9bf71b8-1c1b-4fd9-929e-45d2145043c3